[Event "EYCC Open-U16 2019"]
[Site "Bratislava"]
[Date "2019.08.07"]
[Round "6.39"]
[White "Novotny, Martin"]
[Black "Sandor, Martin"]
[Result "1-0"]
[ECO "D41"]
[WhiteElo "2178"]
[BlackElo "2035"]
[Annotator "NA"]
[PlyCount "59"]
[EventDate "2019.08.02"]
[EventType "swiss"]
[EventCountry "SVK"]
[SourceTitle "playchess.com"]
[Source "ChessBase"]
[SourceQuality "1"]
[TimeControl "40/5400+30:1800+30"]

1. d4 {[%emt 0:00:00]} d5 {[%emt 0:00:00]} 2. c4 {[%emt 0:00:00]} e6 {[%emt 0:00:00]} 3. Nf3 {[%emt 0:00:00]} Nf6 {[%emt 0:00:00]} 4. Nc3 {[%emt 0:00:00]} c5 {[%emt 0:00:01]} 5. cxd5 {[%emt 0:00:07]} Nxd5 {[%emt 0:00:05]} 6. e4 {[%emt 0:00:23]} Nxc3 {[%emt 0:00:05]} 7. bxc3 {[%emt 0:00:05]} cxd4 {[%emt 0:00:06]} 8. cxd4 {[%emt 0:00:07]} Bb4+ {[%emt 0:00:04]} 9. Bd2 {[%emt 0:00:12]} Bxd2+ {[%emt 0:00:05]} 10. Qxd2 {[%emt 0:00:10]} O-O {[%emt 0:00:05]} 11. Bc4 {[%emt 0:00:28]} Nd7 {[%emt 0:00:36]} 12. O-O {[%emt 0:00:23]} b6 {[%emt 0:00:39]} 13. Rfe1 {[%emt 0:00:57]} Bb7 {[%emt 0:00:24]} 14. Rad1 {[%emt 0:00:24]} Rc8 {[%emt 0:00:48]} 15. Bb3 {[%emt 0:00:44]} Qf6 {[%emt 0:00:20]} 16. d5 {[%emt 0:23:04]} Nc5 {[%emt 0:05:23]} 17. Bc2 {[%emt 0:07:45]} exd5 {[%emt 0:11:08]} 18. e5 {[%emt 0:01:21]} Qe7 {[%emt 0:03:09]} 19. Nd4 {[%emt 0:09:06]} Ne4 {[%emt 0:04:39]} 20. Qf4 {[%emt 0:13:03]} Qg5 {[%emt 0:06:19]} 21. Rxe4 {[%emt 0:03:55]} Qxf4 {[%emt 0:00:23]} 22. Rxf4 {[%emt 0:00:05]} Rfe8 {[%emt 0:00:11]} 23. Rf3 {[%emt 0:03:28]} Rxe5 {[%emt 0:00:44]} 24. Re3 {[%emt 0:00:13]} f6 {[%emt 0:00:04]} 25. Bb3 {[%emt 0:02:38]} Kf7 {[%emt 0:00:50]} 26. h3 {[%emt 0:02:50]} a6 {[%emt 0:00:40]} 27. Nf3 {[%emt 0:01:25]} Rxe3 {[%emt 0:00:05]} 28. fxe3 {[%emt 0:00:04]} Rc3 {[%emt 0:00:35]} 29. Kf2 {[%emt 0:01:08]} Ke7 {[%emt 0:01:44]} 30. Nd4 {[%emt 0:01:20]} 1-0

[Event "EYCC Open-U16 2019"]
[Site "Bratislava"]
[Date "2019.08.07"]
[Round "6.40"]
[White "Zetocha, Adrian"]
[Black "Palczert, Botond"]
[Result "0-1"]
[ECO "D80"]
[WhiteElo "2193"]
[BlackElo "2022"]
[Annotator "NA"]
[PlyCount "62"]
[EventDate "2019.08.02"]
[EventType "swiss"]
[EventCountry "SVK"]
[SourceTitle "playchess.com"]
[Source "ChessBase"]
[SourceQuality "1"]
[TimeControl "40/5400+30:1800+30"]

1. d4 {[%emt 0:00:00]} Nf6 {[%emt 0:00:00]} 2. c4 {[%emt 0:00:00]} g6 {[%emt 0:00:05]} 3. Nc3 {[%emt 0:00:00]} d5 {[%emt 0:00:17]} 4. Bg5 {[%emt 0:00:01]} Ne4 {[%emt 0:00:31]} 5. Bh4 {[%emt 0:00:07]} Nxc3 {[%emt 0:00:20]} 6. bxc3 {[%emt 0:00:06]} dxc4 {[%emt 0:00:14]} 7. e3 {[%emt 0:00:09]} Be6 {[%emt 0:00:33]} 8. Nf3 {[%emt 0:00:09]} Bg7 {[%emt 0:01:28]} 9. Qb1 {[%emt 0:00:12]} b6 {[%emt 0:14:54]} 10. Ng5 {[%emt 0:20:34]} Bd5 {[%emt 0:01:27]} 11. e4 {[%emt 0:00:08]} h6 {[%emt 0:13:29]} 12. exd5 {[%emt 0:29:20]} hxg5 {[%emt 0:00:03]} 13. Qb5+ {[%emt 0:00:18]} Qd7 {[%emt 0:04:02]} 14. Qxd7+ {[%emt 0:00:11]} Nxd7 {[%emt 0:00:02]} 15. Bxg5 {[%emt 0:00:13]} b5 {[%emt 0:00:23]} 16. a4 {[%emt 0:04:16]} b4 {[%emt 0:03:19]} 17. Bxc4 {[%emt 0:03:15]} bxc3 {[%emt 0:02:53]} 18. O-O-O {[%emt 0:06:43]} Rb8 {[%emt 0:12:59]} 19. Rd3 {[%emt 0:04:30]} Rb2 {[%emt 0:03:17]} 20. Rxc3 {[%emt 0:05:16]} Rxf2 {[%emt 0:01:08]} 21. d6 {[%emt 0:01:29]} cxd6 {[%emt 0:10:42]} 22. Ba6 {[%emt 0:07:21]} O-O {[%emt 0:03:20]} 23. Rc7 {[%emt 0:04:48]} Nb6 {[%emt 0:00:50]} 24. Rxa7 {[%emt 0:01:46]} Nxa4 {[%emt 0:02:55]} 25. Rd1 {[%emt 0:02:47]} Nc3 {[%emt 0:05:02]} 26. Rd3 {[%emt 0:00:40]} Ne2+ {[%emt 0:03:51]} 27. Kd1 {[%emt 0:00:34]} Nxd4 {[%emt 0:02:00]} 28. Be3 {[%emt 0:05:48]} Rf1+ {[%emt 0:01:30]} 29. Kd2 {[%emt 0:00:07]} Nf5 {[%emt 0:03:04]} 30. Rxd6 {[%emt 0:01:30]} Ra1 {[%emt 0:04:32]} 31. Rd3 {[%emt 0:02:30]} Ra2+ {[%emt 0:00:59]} 0-1

[Event "EYCC Open-U16 2019"]
[Site "Bratislava"]
[Date "2019.08.07"]
[Round "6.41"]
[White "Gzib, David"]
[Black "Mica, Marek"]
[Result "1/2-1/2"]
[ECO "B31"]
[WhiteElo "2021"]
[BlackElo "2222"]
[Annotator "NA"]
[PlyCount "115"]
[EventDate "2019.08.02"]
[EventType "swiss"]
[EventCountry "SVK"]
[SourceTitle "playchess.com"]
[Source "ChessBase"]
[SourceQuality "1"]
[TimeControl "40/5400+30:1800+30"]

1. e4 {[%emt 0:00:00]} c5 {[%emt 0:00:00]} 2. Nf3 {[%emt 0:00:14]} Nc6 {[%emt 0:00:00]} 3. Bb5 {[%emt 0:01:22]} g6 {[%emt 0:00:14]} 4. c3 {[%emt 0:00:19]} Bg7 {[%emt 0:14:01]} 5. O-O {[%emt 0:01:34]} e5 {[%emt 0:01:41]} 6. d3 {[%emt 0:04:43]} Nge7 {[%emt 0:10:35]} 7. Nbd2 {[%emt 0:04:24]} O-O {[%emt 0:00:41]} 8. Re1 {[%emt 0:06:49]} d6 {[%emt 0:06:08]} 9. Nf1 {[%emt 0:04:07]} a6 {[%emt 0:01:58]} 10. Ba4 {[%emt 0:01:32]} b5 {[%emt 0:01:02]} 11. Bb3 {[%emt 0:00:23]} Na5 {[%emt 0:07:32]} 12. Bc2 {[%emt 0:00:12]} Bg4 {[%emt 0:00:08]} 13. Ne3 {[%emt 0:04:49]} Bxf3 {[%emt 0:03:26]} 14. Qxf3 {[%emt 0:00:12]} Qd7 {[%emt 0:00:39]} 15. Ng4 {[%emt 0:24:32]} f5 {[%emt 0:03:26]} 16. Nh6+ {[%emt 0:00:20]} Kh8 {[%emt 0:01:13]} 17. Qh3 {[%emt 0:03:29]} Rad8 {[%emt 0:04:31]} 18. Bg5 {[%emt 0:01:57]} Bf6 {[%emt 0:06:14]} 19. Qh4 {[%emt 0:03:17]} Bxg5 {[%emt 0:03:25]} 20. Qxg5 {[%emt 0:00:11]} f4 {[%emt 0:01:23]} 21. b4 {[%emt 0:05:41]} cxb4 {[%emt 0:11:15]} 22. cxb4 {[%emt 0:00:10]} Nac6 {[%emt 0:02:01]} 23. Bb3 {[%emt 0:01:46]} Kg7 {[%emt 0:05:06]} 24. Rac1 {[%emt 0:08:46]} Nd4 {[%emt 0:01:01]} 25. f3 {[%emt 0:02:59]} Nec6 {[%emt 0:03:41]} 26. Ng4 {[%emt 0:05:13]} Rde8 {[%emt 0:03:53]} 27. h4 {[%emt 0:06:28]} Qe7 {[%emt 0:03:01]} 28. Qh6+ {[%emt 0:00:27]} Kh8 {[%emt 0:00:08]} 29. h5 {[%emt 0:03:40]} gxh5 {[%emt 0:02:24]} 30. Qxh5 {[%emt 0:01:20]} Nxb4 {[%emt 0:00:52]} 31. Rc3 {[%emt 0:01:39]} Rc8 {[%emt 0:00:38]} 32. Rxc8 {[%emt 0:00:42]} Rxc8 {[%emt 0:00:35]} 33. Nh6 {[%emt 0:01:19]} Nxb3 {[%emt 0:00:34]} 34. axb3 {[%emt 0:00:51]} Rf8 {[%emt 0:01:32]} 35. Nf5 {[%emt 0:01:02]} Qa7+ {[%emt 0:00:31]} 36. Kh2 {[%emt 0:00:30]} Qf7 {[%emt 0:01:14]} 37. Qxf7 {[%emt 0:00:45]} Rxf7 {[%emt 0:00:06]} 38. Rc1 {[%emt 0:00:04]} h5 {[%emt 0:00:29]} 39. Rc8+ {[%emt 0:00:29]} Kh7 {[%emt 0:00:09]} 40. Nxd6 {[%emt 0:00:00]} Rd7 {[%emt 0:00:00]} 41. Nf5 {[%emt 0:06:35]} Rxd3 {[%emt 0:02:32]} 42. Rc5 {[%emt 0:00:39]} Rxb3 {[%emt 0:01:51]} 43. Rxe5 {[%emt 0:00:10]} Nc2 {[%emt 0:02:27]} 44. Re6 {[%emt 0:02:54]} Rb2 {[%emt 0:19:19]} 45. Rxa6 {[%emt 0:07:13]} Ne1 {[%emt 0:01:04]} 46. Rh6+ {[%emt 0:00:50]} Kg8 {[%emt 0:00:31]} 47. Rxh5 {[%emt 0:05:15]} Rxg2+ {[%emt 0:02:40]} 48. Kh3 {[%emt 0:00:22]} Rg1 {[%emt 0:00:42]} 49. Nd4 {[%emt 0:01:13]} Rg3+ {[%emt 0:01:30]} 50. Kh2 {[%emt 0:00:25]} b4 {[%emt 0:01:21]} 51. Rb5 {[%emt 0:01:27]} Nxf3+ {[%emt 0:01:03]} 52. Nxf3 {[%emt 0:00:10]} Rxf3 {[%emt 0:00:08]} 53. Rxb4 {[%emt 0:00:12]} Re3 {[%emt 0:00:06]} 54. Kg2 {[%emt 0:00:47]} Kf7 {[%emt 0:00:18]} 55. e5 {[%emt 0:00:32]} f3+ {[%emt 0:00:06]} 56. Kf2 {[%emt 0:00:10]} Ra3 {[%emt 0:00:15]} 57. Rf4+ {[%emt 0:00:10]} Ke6 {[%emt 0:00:07]} 58. Rxf3 {[%emt 0:00:08]} 1/2-1/2

[Event "EYCC Open-U16 2019"]
[Site "Bratislava"]
[Date "2019.08.07"]
[Round "6.42"]
[White "Martin Barcelo, Carles"]
[Black "Pobor, Milo"]
[Result "1/2-1/2"]
[ECO "B40"]
[WhiteElo "2012"]
[BlackElo "2067"]
[Annotator "NA"]
[PlyCount "62"]
[EventDate "2019.08.02"]
[EventType "swiss"]
[EventCountry "SVK"]
[SourceTitle "playchess.com"]
[Source "ChessBase"]
[SourceQuality "1"]
[TimeControl "40/5400+30:1800+30"]

1. e4 {[%emt 0:00:00]} c5 {[%emt 0:00:00]} 2. Nf3 {[%emt 0:00:00]} e6 {[%emt 0:00:00]} 3. b3 {[%emt 0:00:00]} b6 {[%emt 0:00:00]} 4. Bd3 {[%emt 0:00:17]} Bb7 {[%emt 0:00:42]} 5. O-O {[%emt 0:00:20]} Ne7 {[%emt 0:02:38]} 6. e5 {[%emt 0:05:07]} Ng6 {[%emt 0:03:31]} 7. Re1 {[%emt 0:06:25]} d6 {[%emt 0:04:36]} 8. Bb2 {[%emt 0:08:35]} dxe5 {[%emt 0:07:54]} 9. Nxe5 {[%emt 0:13:19]} Bd6 {[%emt 0:11:54]} 10. Nf3 {[%emt 0:06:39]} Nd7 {[%emt 0:09:55]} 11. Nc3 {[%emt 0:12:17]} O-O {[%emt 0:05:40]} 12. Be4 {[%emt 0:03:35]} Bxe4 {[%emt 0:04:13]} 13. Nxe4 {[%emt 0:00:11]} Be7 {[%emt 0:00:32]} 14. d3 {[%emt 0:02:24]} Nf6 {[%emt 0:07:46]} 15. Nfd2 {[%emt 0:05:46]} Nd5 {[%emt 0:03:01]} 16. Nc4 {[%emt 0:05:50]} Re8 {[%emt 0:04:48]} 17. Ne3 {[%emt 0:12:03]} f5 {[%emt 0:05:16]} 18. Nd2 {[%emt 0:02:30]} Bf6 {[%emt 0:02:49]} 19. Bxf6 {[%emt 0:02:46]} Qxf6 {[%emt 0:01:14]} 20. g3 {[%emt 0:03:41]} Rad8 {[%emt 0:02:39]} 21. Qf3 {[%emt 0:01:34]} Nb4 {[%emt 0:03:11]} 22. a3 {[%emt 0:01:53]} Ne5 {[%emt 0:06:06]} 23. Qg2 {[%emt 0:03:45]} Nd5 {[%emt 0:01:37]} 24. Nec4 {[%emt 0:00:38]} Nc6 {[%emt 0:01:47]} 25. f4 {[%emt 0:00:52]} e5 {[%emt 0:01:35]} 26. fxe5 {[%emt 0:00:48]} Nxe5 {[%emt 0:00:12]} 27. Nxe5 {[%emt 0:00:46]} Rxe5 {[%emt 0:00:02]} 28. Nc4 {[%emt 0:00:20]} Re7 {[%emt 0:01:38]} 29. Qf2 {[%emt 0:01:09]} b5 {[%emt 0:03:12]} 30. Nd2 {[%emt 0:00:08]} Ne3 {[%emt 0:02:10]} 31. Nf1 {[%emt 0:00:51]} Nxf1 {[%emt 0:03:16]} 1/2-1/2

[Event "EYCC Open-U16 2019"]
[Site "Bratislava"]
[Date "2019.08.07"]
[Round "6.43"]
[White "Ruchko, Denis"]
[Black "Gomez Carreno, Martin"]
[Result "1/2-1/2"]
[ECO "A58"]
[WhiteElo "2002"]
[BlackElo "2078"]
[Annotator "NA"]
[PlyCount "113"]
[EventDate "2019.08.02"]
[EventType "swiss"]
[EventCountry "SVK"]
[SourceTitle "playchess.com"]
[Source "ChessBase"]
[SourceQuality "1"]
[TimeControl "40/5400+30:1800+30"]

1. d4 {[%emt 0:00:00]} Nf6 {[%emt 0:00:00]} 2. c4 {[%emt 0:00:00]} c5 {[%emt 0:00:00]} 3. d5 {[%emt 0:00:00]} b5 {[%emt 0:00:00]} 4. cxb5 {[%emt 0:00:00]} a6 {[%emt 0:00:00]} 5. bxa6 {[%emt 0:00:00]} d6 {[%emt 0:00:16]} 6. Nc3 {[%emt 0:00:04]} g6 {[%emt 0:00:09]} 7. e4 {[%emt 0:00:19]} Bg7 {[%emt 0:00:20]} 8. Nf3 {[%emt 0:01:22]} Qa5 {[%emt 0:00:29]} 9. Nd2 {[%emt 0:18:26]} Bxa6 {[%emt 0:04:41]} 10. Bxa6 {[%emt 0:01:29]} Qxa6 {[%emt 0:00:35]} 11. a4 {[%emt 0:03:54]} O-O {[%emt 0:04:55]} 12. Nb5 {[%emt 0:02:52]} Qb7 {[%emt 0:00:56]} 13. O-O {[%emt 0:02:36]} Na6 {[%emt 0:02:24]} 14. Ra3 {[%emt 0:10:45]} Rfb8 {[%emt 0:01:34]} 15. Re1 {[%emt 0:07:24]} Nc7 {[%emt 0:05:43]} 16. Nxc7 {[%emt 0:01:37]} Qxc7 {[%emt 0:00:02]} 17. Nc4 {[%emt 0:00:37]} Nd7 {[%emt 0:00:45]} 18. a5 {[%emt 0:14:47]} Ra6 {[%emt 0:09:43]} 19. Qc2 {[%emt 0:02:56]} Rb5 {[%emt 0:05:05]} 20. Bd2 {[%emt 0:06:06]} Ne5 {[%emt 0:01:36]} 21. Qa4 {[%emt 0:05:27]} Qb8 {[%emt 0:05:16]} 22. Nxe5 {[%emt 0:08:15]} Bxe5 {[%emt 0:00:15]} 23. b3 {[%emt 0:00:16]} Ra7 {[%emt 0:02:31]} 24. Rb1 {[%emt 0:01:30]} Rc7 {[%emt 0:02:50]} 25. a6 {[%emt 0:00:27]} Ra7 {[%emt 0:16:54]} 26. g3 {[%emt 0:00:21]} Rb6 {[%emt 0:03:44]} 27. Qc4 {[%emt 0:02:44]} Qa8 {[%emt 0:02:13]} 28. b4 {[%emt 0:00:40]} Raxa6 {[%emt 0:02:55]} 29. Rxa6 {[%emt 0:00:07]} Qxa6 {[%emt 0:01:10]} 30. Qxa6 {[%emt 0:00:17]} Rxa6 {[%emt 0:00:07]} 31. bxc5 {[%emt 0:02:43]} dxc5 {[%emt 0:00:07]} 32. Be3 {[%emt 0:04:32]} c4 {[%emt 0:01:54]} 33. f4 {[%emt 0:00:30]} Ba1 {[%emt 0:01:21]} 34. Kf2 {[%emt 0:01:15]} Ra2+ {[%emt 0:04:09]} 35. Kf3 {[%emt 0:00:07]} f6 {[%emt 0:11:35]} 36. Rc1 {[%emt 0:01:48]} Ra4 {[%emt 0:02:35]} 37. Bd2 {[%emt 0:01:43]} Bd4 {[%emt 0:00:32]} 38. Rc2 {[%emt 0:00:29]} Kf7 {[%emt 0:02:17]} 39. Ke2 {[%emt 0:00:14]} h6 {[%emt 0:03:54]} 40. Be3 {[%emt 0:00:00]} Ba1 {[%emt 0:00:00]} 41. g4 Kg7 {[%emt 0:10:22]} 42. Bc5 {[%emt 0:19:07]} Kf7 43. Be3 h5 {[%emt 0:04:16]} 44. h3 {[%emt 0:01:30]} Ke8 45. Bc5 Kd7 {[%emt 0:04:43]} 46. gxh5 {[%emt 0:07:42]} gxh5 {[%emt 0:00:02]} 47. Kf3 {[%emt 0:00:41]} e6 {[%emt 0:03:41]} 48. Rd2 {[%emt 0:03:03]} c3 {[%emt 0:03:05]} 49. dxe6+ {[%emt 0:00:02]} Kxe6 {[%emt 0:00:02]} 50. f5+ {[%emt 0:01:02]} Kf7 {[%emt 0:00:12]} 51. Rc2 {[%emt 0:00:58]} Bb2 {[%emt 0:00:25]} 52. Bf2 {[%emt 0:01:57]} Ra1 {[%emt 0:01:31]} 53. Bd4 {[%emt 0:00:18]} Rd1 {[%emt 0:03:09]} 54. Be3 {[%emt 0:01:22]} Rh1 {[%emt 0:01:59]} 55. Kg2 {[%emt 0:00:15]} Re1 {[%emt 0:00:40]} 56. Kf2 {[%emt 0:00:17]} Rh1 {[%emt 0:00:42]} 57. Kg2 {[%emt 0:00:20]} 1/2-1/2

[Event "EYCC Open-U16 2019"]
[Site "Bratislava"]
[Date "2019.08.07"]
[Round "6.44"]
[White "Magold, Victor"]
[Black "Placer, Sebastian"]
[Result "1/2-1/2"]
[ECO "D70"]
[WhiteElo "1962"]
[BlackElo "2040"]
[Annotator "NA"]
[PlyCount "72"]
[EventDate "2019.08.02"]
[EventType "swiss"]
[EventCountry "SVK"]
[SourceTitle "playchess.com"]
[Source "ChessBase"]
[SourceQuality "1"]
[TimeControl "40/5400+30:1800+30"]

1. d4 {[%emt 0:00:00]} Nf6 {[%emt 0:00:00]} 2. c4 {[%emt 0:00:00]} g6 {[%emt 0:00:00]} 3. Nf3 {[%emt 0:00:00]} Bg7 {[%emt 0:00:17]} 4. g3 {[%emt 0:00:30]} d5 {[%emt 0:00:12]} 5. cxd5 {[%emt 0:00:10]} Nxd5 6. Bg2 {[%emt 0:00:13]} Nb6 {[%emt 0:00:21]} 7. O-O {[%emt 0:02:03]} Nc6 {[%emt 0:00:09]} 8. e3 {[%emt 0:01:00]} O-O {[%emt 0:00:15]} 9. Nc3 {[%emt 0:01:44]} Re8 {[%emt 0:00:13]} 10. Re1 {[%emt 0:17:38]} a5 {[%emt 0:01:23]} 11. b3 {[%emt 0:24:46]} e5 {[%emt 0:01:20]} 12. Nxe5 {[%emt 0:04:04]} Nxe5 {[%emt 0:00:24]} 13. dxe5 {[%emt 0:00:03]} Bxe5 {[%emt 0:01:20]} 14. Bb2 {[%emt 0:02:22]} c6 {[%emt 0:01:52]} 15. Qe2 {[%emt 0:00:56]} Qe7 {[%emt 0:14:45]} 16. Rac1 {[%emt 0:07:04]} a4 {[%emt 0:06:15]} 17. Ne4 {[%emt 0:10:59]} axb3 {[%emt 0:20:53]} 18. Bxe5 {[%emt 0:00:29]} Qxe5 {[%emt 0:00:05]} 19. axb3 {[%emt 0:00:11]} Ra3 {[%emt 0:17:46]} 20. Rc5 {[%emt 0:11:20]} Qg7 {[%emt 0:06:01]} 21. Nd6 {[%emt 0:10:47]} Rd8 {[%emt 0:00:22]} 22. Nxc8 {[%emt 0:00:32]} Nxc8 {[%emt 0:00:36]} 23. Qc2 {[%emt 0:00:21]} Ra1 {[%emt 0:02:36]} 24. Rf1 {[%emt 0:02:09]} Nb6 {[%emt 0:02:24]} 25. Rc3 {[%emt 0:01:11]} Rda8 {[%emt 0:00:58]} 26. Rd3 {[%emt 0:00:32]} Qe5 {[%emt 0:02:38]} 27. Qd2 {[%emt 0:01:08]} Rxf1+ {[%emt 0:03:31]} 28. Bxf1 {[%emt 0:00:08]} Nd5 {[%emt 0:00:40]} 29. Qe2 {[%emt 0:01:31]} Ra1 {[%emt 0:01:38]} 30. Rd1 {[%emt 0:00:28]} Nc3 {[%emt 0:04:46]} 31. Rd8+ {[%emt 0:00:03]} Kg7 {[%emt 0:00:03]} 32. Qc4 {[%emt 0:00:41]} Qf6 {[%emt 0:06:06]} 33. Rd4 {[%emt 0:00:48]} Nd5 {[%emt 0:01:50]} 34. Qe2 {[%emt 0:00:27]} Rb1 {[%emt 0:03:30]} 35. Qd3 {[%emt 0:00:32]} Rb2 {[%emt 0:00:33]} 36. Be2 {[%emt 0:00:25]} Ra2 {[%emt 0:01:24]} 1/2-1/2

[Event "EYCC Open-U16 2019"]
[Site "Bratislava"]
[Date "2019.08.07"]
[Round "6.45"]
[White "Sadovnikov, Konstantin"]
[Black "Nagy, Ladislav"]
[Result "0-1"]
[ECO "B23"]
[WhiteElo "1798"]
[BlackElo "2061"]
[Annotator "NA"]
[PlyCount "58"]
[EventDate "2019.08.02"]
[EventType "swiss"]
[EventCountry "SVK"]
[SourceTitle "playchess.com"]
[Source "ChessBase"]
[SourceQuality "1"]
[TimeControl "40/5400+30:1800+30"]

1. e4 {[%emt 0:00:00]} c5 {[%emt 0:00:00]} 2. Nc3 {[%emt 0:00:00]} e6 {[%emt 0:00:13]} 3. f4 {[%emt 0:00:00]} Nc6 {[%emt 0:01:10]} 4. Nf3 {[%emt 0:00:00]} Nge7 {[%emt 0:09:05]} 5. g3 {[%emt 0:00:08]} g6 {[%emt 0:04:16]} 6. Bg2 {[%emt 0:00:30]} Bg7 {[%emt 0:00:18]} 7. d3 {[%emt 0:00:11]} d6 {[%emt 0:00:47]} 8. O-O {[%emt 0:00:07]} O-O {[%emt 0:00:36]} 9. Be3 {[%emt 0:00:09]} b6 {[%emt 0:02:28]} 10. Bf2 {[%emt 0:00:40]} Ba6 {[%emt 0:02:02]} 11. Re1 {[%emt 0:00:54]} Rc8 {[%emt 0:01:31]} 12. d4 {[%emt 0:21:39]} cxd4 {[%emt 0:00:54]} 13. Nxd4 {[%emt 0:02:32]} Na5 {[%emt 0:02:23]} 14. Rb1 {[%emt 0:20:08]} Qd7 {[%emt 0:06:04]} 15. Qg4 {[%emt 0:18:01]} Rfd8 {[%emt 0:19:20]} 16. Red1 {[%emt 0:05:13]} Nec6 {[%emt 0:06:10]} 17. e5 {[%emt 0:06:05]} Qe7 {[%emt 0:11:22]} 18. Nxc6 {[%emt 0:11:10]} Nxc6 {[%emt 0:00:25]} 19. exd6 {[%emt 0:01:24]} Rxd6 {[%emt 0:01:03]} 20. Rxd6 {[%emt 0:01:25]} Qxd6 {[%emt 0:00:19]} 21. Qf3 {[%emt 0:05:29]} Nd4 {[%emt 0:07:26]} 22. Qd1 {[%emt 0:00:25]} Rd8 {[%emt 0:02:56]} 23. Kh1 {[%emt 0:01:14]} Qc7 {[%emt 0:03:38]} 24. Qc1 {[%emt 0:02:56]} Ne2 {[%emt 0:04:35]} 25. Nxe2 {[%emt 0:01:17]} Bxe2 {[%emt 0:00:07]} 26. Qe3 {[%emt 0:00:48]} Qxc2 {[%emt 0:00:56]} 27. Be4 {[%emt 0:00:08]} Bd3 {[%emt 0:01:13]} 28. Re1 {[%emt 0:00:53]} Bxe4+ {[%emt 0:00:31]} 29. Qxe4 {[%emt 0:00:05]} Qxf2 {[%emt 0:00:14]} 0-1

[Event "EYCC Open-U16 2019"]
[Site "Bratislava"]
[Date "2019.08.07"]
[Round "6.46"]
[White "Ampelakiotis, Stavros"]
[Black "Karadzhov, Ivan"]
[Result "1-0"]
[ECO "C95"]
[WhiteElo "2080"]
[BlackElo "2023"]
[Annotator "NA"]
[PlyCount "127"]
[EventDate "2019.08.02"]
[EventType "swiss"]
[EventCountry "SVK"]
[SourceTitle "playchess.com"]
[Source "ChessBase"]
[SourceQuality "1"]
[TimeControl "40/5400+30:1800+30"]

1. e4 {[%emt 0:00:00]} e5 {[%emt 0:00:00]} 2. Nf3 {[%emt 0:00:00]} Nc6 {[%emt 0:00:12]} 3. Bb5 {[%emt 0:00:03]} a6 {[%emt 0:00:17]} 4. Ba4 {[%emt 0:00:09]} Nf6 {[%emt 0:00:21]} 5. O-O {[%emt 0:00:07]} Be7 {[%emt 0:00:10]} 6. Re1 {[%emt 0:00:07]} b5 {[%emt 0:00:20]} 7. Bb3 {[%emt 0:00:04]} d6 {[%emt 0:00:17]} 8. c3 {[%emt 0:00:11]} O-O {[%emt 0:00:10]} 9. h3 {[%emt 0:00:07]} Nb8 {[%emt 0:00:27]} 10. d4 {[%emt 0:00:09]} Nbd7 {[%emt 0:00:19]} 11. Nbd2 {[%emt 0:00:18]} Bb7 {[%emt 0:00:37]} 12. Bc2 {[%emt 0:00:07]} Re8 {[%emt 0:00:18]} 13. a4 {[%emt 0:00:20]} Bf8 {[%emt 0:01:31]} 14. Bd3 {[%emt 0:00:17]} bxa4 {[%emt 0:11:34]} 15. Rxa4 {[%emt 0:06:40]} Nb6 {[%emt 0:04:08]} 16. Ra2 {[%emt 0:08:05]} exd4 {[%emt 0:17:42]} 17. cxd4 {[%emt 0:00:37]} d5 {[%emt 0:04:19]} 18. e5 {[%emt 0:01:12]} Nfd7 {[%emt 0:07:52]} 19. Nb3 {[%emt 0:18:55]} g6 {[%emt 0:13:38]} 20. Na5 {[%emt 0:14:32]} Qc8 {[%emt 0:00:48]} 21. h4 {[%emt 0:10:07]} Bb4 {[%emt 0:06:23]} 22. Bd2 {[%emt 0:01:31]} Bxa5 {[%emt 0:01:06]} 23. Bxa5 {[%emt 0:07:08]} Nf8 {[%emt 0:05:56]} 24. h5 {[%emt 0:05:31]} Nc4 {[%emt 0:05:33]} 25. Bc3 {[%emt 0:04:42]} Ne6 {[%emt 0:01:38]} 26. b3 {[%emt 0:03:58]} Nb6 {[%emt 0:00:17]} 27. Qc1 {[%emt 0:02:33]} c5 {[%emt 0:01:20]} 28. Ba5 {[%emt 0:05:02]} Nd7 {[%emt 0:09:40]} 29. Rc2 {[%emt 0:00:19]} Nb8 {[%emt 0:00:51]} 30. Bb6 {[%emt 0:02:37]} Nd7 {[%emt 0:03:16]} 31. Bxc5 {[%emt 0:00:18]} Ndxc5 {[%emt 0:00:05]} 32. dxc5 {[%emt 0:00:40]} Bc6 {[%emt 0:00:31]} 33. Ng5 {[%emt 0:05:07]} Qb7 {[%emt 0:01:45]} 34. hxg6 {[%emt 0:01:59]} fxg6 {[%emt 0:00:30]} 35. Rb2 {[%emt 0:01:27]} Qb4 {[%emt 0:01:08]} 36. Nxe6 {[%emt 0:02:16]} Rxe6 {[%emt 0:00:04]} 37. Qe3 {[%emt 0:00:25]} Rae8 {[%emt 0:00:43]} 38. f4 {[%emt 0:00:39]} Qc3 {[%emt 0:01:36]} 39. Rbb1 {[%emt 0:00:39]} d4 {[%emt 0:01:07]} 40. Rec1 {[%emt 0:00:00]} Qb4 {[%emt 0:00:00]} 41. Qf2 {[%emt 0:08:44]} Bd5 {[%emt 0:02:42]} 42. Bc4 {[%emt 0:04:42]} Qxc5 {[%emt 0:04:22]} 43. Bxa6 {[%emt 0:00:22]} Qb6 {[%emt 0:02:37]} 44. Bd3 {[%emt 0:02:40]} Rf8 {[%emt 0:03:06]} 45. Rc4 {[%emt 0:09:33]} Kg7 {[%emt 0:09:49]} 46. Rxd4 {[%emt 0:03:12]} Rxe5 {[%emt 0:00:11]} 47. Ra4 {[%emt 0:02:33]} Qxf2+ {[%emt 0:05:31]} 48. Kxf2 {[%emt 0:00:05]} Rg5 {[%emt 0:00:09]} 49. Ra7+ {[%emt 0:02:32]} Kh8 {[%emt 0:00:25]} 50. g3 {[%emt 0:00:45]} Rh5 {[%emt 0:00:03]} 51. Rd7 {[%emt 0:00:50]} Rh2+ {[%emt 0:01:49]} 52. Ke3 {[%emt 0:00:06]} Re8+ {[%emt 0:01:33]} 53. Kd4 {[%emt 0:00:09]} Be6 {[%emt 0:00:12]} 54. Rd6 {[%emt 0:00:34]} Bg4 {[%emt 0:02:58]} 55. b4 {[%emt 0:00:37]} Rg2 {[%emt 0:00:19]} 56. Rh1 {[%emt 0:01:06]} Rxg3 {[%emt 0:00:19]} 57. Bxg6 {[%emt 0:00:21]} Rb8 {[%emt 0:01:28]} 58. Rxh7+ {[%emt 0:00:36]} Kg8 {[%emt 0:00:04]} 59. b5 {[%emt 0:00:33]} Be2 {[%emt 0:00:35]} 60. Be4 {[%emt 0:00:30]} Bxb5 {[%emt 0:00:45]} 61. Rdh6 {[%emt 0:00:29]} Be8 {[%emt 0:01:25]} 62. Bd5+ {[%emt 0:00:23]} Bf7 {[%emt 0:01:16]} 63. Bxf7+ {[%emt 0:00:23]} Kf8 {[%emt 0:00:04]} 64. Rh8+ {[%emt 0:00:14]} 1-0